bitfinex-derivatives/quotes_BTCF0:USTF0_20250209
["timestamp","ask_amount","ask_price","bid_price","bid_amount"]
[1739126667306,0.18671223,96340.0,96339.0,0.2075488]
[1739126668603,0.18671223,96340.0,96339.0,0.2085488]
[1739126669800,0.08773567,96340.0,96339.0,0.001]
[1739126670000,0.08773567,96340.0,96339.0,0.2085489]
[1739126670198,0.08773567,96340.0,96339.0,0.2095489]
[1739126673095,0.27929464,96342.0,96339.0,0.2095489]
[1739126673096,0.0611,96342.0,96341.0,0.2075446]
[1739126674201,0.0611,96342.0,96341.0,0.2085446]
[1739126674790,0.0611,96342.0,96341.0,0.2095446]
[1739126676105,0.14883567,96342.0,96341.0,0.2095446]
[1739126676406,0.19930766,96342.0,96341.0,0.2095446]
[1739126679306,0.13820766,96342.0,96341.0,0.2095446]
[1739126680810,0.21819464,96343.0,96341.0,0.2095446]
[1739126683003,0.21819464,96343.0,96341.0,0.2085446]
[1739126683303,0.21819464,96343.0,96341.0,0.2095446]
[1739126684410,0.21819464,96343.0,96341.0,0.002]
[1739126685004,0.42573594,96343.0,96341.0,0.002]
[1739126685402,0.2075413,96343.0,96341.0,0.002]
[1739126686916,0.2075413,96343.0,96332.0,0.00015575]
[1739126686917,0.2075819,96333.0,96332.0,0.00015575]
[1739126687612,0.2729819,96333.0,96332.0,0.00015575]
[1739126689104,0.3554,96333.0,96328.0,0.18649142]
[1739126689405,0.3554,96333.0,96316.0,0.2076182]
[1739126689406,0.3608,96329.0,96316.0,0.2076182]
[1739126689609,0.3608,96317.0,96316.0,0.2076182]
[1739126690611,0.3608,96317.0,96310.0,0.08173275]
[1739126690806,0.2076229,96314.0,96310.0,0.08173275]
[1739126691004,0.0327,96313.0,96310.0,0.2076304]
[1739126692208,0.3935,96313.0,96310.0,0.2076304]
[1739126692409,0.18652471,96311.0,96310.0,0.2076304]
[1739126693316,0.207636,96308.0,96307.0,0.00015575]
[1739126695309,0.18752471,96311.0,96307.0,0.00015575]
[1739126695507,0.18752471,96311.0,96307.0,0.00115575]
[1739126695708,0.2076295,96311.0,96307.0,0.00115575]
[1739126696510,0.2076295,96311.0,96307.0,0.00015575]
[1739126696918,0.2086295,96311.0,96307.0,0.00015575]
[1739126701015,0.001,96311.0,96307.0,0.00015575]
[1739126701209,0.001,96311.0,96307.0,1e-08]
[1739126701210,0.207636,96308.0,96307.0,1e-08]
[1739126702614,0.207636,96308.0,96307.0,0.00100001]
[1739126705426,0.276636,96308.0,96307.0,0.00100001]
[1739126705931,0.2076642,96295.0,96285.0,0.2076845]
[1739126706223,0.3608,96292.0,96278.0,0.0519246]
[1739126706420,0.5684709,96292.0,96288.0,0.207677]
[1739126706621,0.5684709,96292.0,96275.0,0.069]
[1739126707022,0.5684709,96292.0,96285.0,0.003]
[1739126707625,0.5684709,96292.0,96288.0,0.001]
[1739126709321,0.2076709,96292.0,96288.0,0.001]
[1739126709526,0.5684709,96292.0,96286.0,0.2076829]
[1739126710124,0.2076742,96291.0,96283.0,0.0446888]
[1739126710339,0.2076742,96291.0,96288.0,0.001]
[1739126710518,0.2076742,96291.0,96288.0,0.002]
[1739126710719,0.2076742,96291.0,96288.0,0.001]
[1739126712122,0.2076742,96291.0,96286.0,0.001]
[1739126712323,0.2076763,96290.0,96288.0,0.001]
[1739126713021,0.2076763,96290.0,96288.0,0.003]
[1739126713217,0.2076763,96290.0,96288.0,0.002]
[1739126713622,0.3608,96292.0,96288.0,0.002]
[1739126713823,0.2076769,96289.0,96288.0,0.002]
[1739126714023,0.2076769,96289.0,96288.0,0.003]
[1739126716032,0.2076769,96289.0,96288.0,0.004]
[1739126717035,0.2076769,96289.0,96288.0,0.005]
[1739126719435,0.5684769,96289.0,96288.0,0.005]
[1739126720625,0.2076985,96279.0,96278.0,0.00015575]
[1739126720829,0.5684985,96279.0,96278.0,0.00015575]
[1739126721936,0.5684985,96279.0,96278.0,0.00115575]
[1739126723630,0.7874985,96279.0,96278.0,0.00115575]
[1739126725735,1.1482985,96279.0,96278.0,0.00115575]
[1739126730442,0.2077244,96267.0,96266.0,0.2077255]
[1739126730632,0.5685244,96267.0,96266.0,0.2077255]
[1739126731434,0.5685244,96267.0,96266.0,0.006]
[1739126732039,0.5685244,96267.0,96266.0,0.01]
[1739126732834,0.5685244,96267.0,96266.0,0.006]
[1739126733147,0.5685244,96267.0,96266.0,0.012]
[1739126733632,0.5685244,96267.0,96266.0,0.011]
[1739126734546,0.5685244,96267.0,96266.0,0.006]
[1739126734737,0.5695244,96267.0,96266.0,0.015]
[1739126736631,0.2077438,96258.0,96257.0,1e-08]
[1739126736832,0.5685438,96258.0,96257.0,1e-08]
[1739126737936,0.5685438,96258.0,96257.0,0.00100001]
[1739126741448,0.7875438,96258.0,96257.0,0.00100001]
[1739126741747,0.2077759,96244.0,96240.0,0.2077821]
[1739126741938,0.6317361,96258.0,96235.0,0.033]
[1739126741939,0.2077765,96243.0,96241.0,0.2077788]
[1739126742543,0.2077765,96243.0,96242.0,0.2077784]
[1739126743139,0.001,96244.0,96241.0,0.2077805]
[1739126743343,0.001,96244.0,96243.0,0.2077762]
[1739126744042,0.3608,96246.0,96242.0,0.008]
[1739126744251,0.5685719,96246.0,96242.0,0.008]
[1739126744637,0.3608,96246.0,96243.0,0.005]
[1739126744840,0.001,96244.0,96243.0,0.012]
[1739126745346,0.001,96244.0,96243.0,0.007]
[1739126745746,0.208774,96244.0,96243.0,0.007]
[1739126746244,0.3618,96246.0,96242.0,0.01]
[1739126746442,0.2077762,96243.0,96242.0,0.01]
[1739126746748,0.2077762,96243.0,96242.0,0.006]
[1739126746948,0.3608,96246.0,96235.0,0.04322522]
[1739126747248,0.2077807,96241.0,96235.0,0.04322522]
[1739126749550,0.2077807,96241.0,96235.0,0.04622522]
[1739126750139,0.2077781,96243.0,96235.0,0.04622522]
[1739126750750,0.2077781,96243.0,96235.0,0.04822522]
[1739126751252,0.2077781,96243.0,96235.0,0.04722522]
[1739126752345,0.2077781,96243.0,96235.0,0.04622522]
[1739126753152,0.2077781,96243.0,96235.0,0.01322522]
[1739126755052,0.3608,96241.0,96235.0,0.01322522]
[1739126756159,0.3608,96241.0,96235.0,0.01122522]
[1739126756360,0.3608,96241.0,96235.0,0.01422522]
[1739126757058,0.3608,96241.0,96235.0,0.01322522]
[1739126757258,0.3608,96241.0,96235.0,0.01522522]
[1739126760661,0.3608,96241.0,96235.0,0.22301662]
[1739126760859,0.3608,96241.0,96238.0,0.207785]
[1739126762258,0.3608,96241.0,96238.0,0.208785]
[1739126762658,0.3608,96241.0,96238.0,0.210785]
[1739126763659,0.3608,96241.0,96238.0,0.003]
[1739126765358,0.00015583,96252.0,96238.0,0.003]
[1739126765564,0.00015583,96252.0,96251.0,0.2077589]
[1739126766654,0.00315583,96252.0,96251.0,0.2077589]
[1739126768158,0.00315583,96252.0,96251.0,0.2097589]
[1739126768558,0.00015583,96252.0,96251.0,0.2127589]
[1739126772568,0.00015583,96252.0,96251.0,0.005]
[1739126772756,0.20791263,96252.0,96251.0,0.005]
[1739126774366,0.00015583,96252.0,96251.0,0.005]
[1739126774768,0.00015583,96252.0,96251.0,0.2127589]
[1739126775163,0.00015583,96252.0,96251.0,0.22307413]
[1739126776771,0.00015583,96252.0,96251.0,0.01531523]
[1739126782563,0.00015583,96252.0,96251.0,0.22307413]
[1739126782961,0.56871263,96252.0,96251.0,0.005]
[1739126783368,0.42995583,96252.0,96239.0,0.01057585]
[1739126783672,0.42995583,96252.0,96234.0,0.3608]
[1739126783673,0.2077873,96238.0,96234.0,0.3608]
[1739126783979,0.0327,96237.0,96234.0,0.3608]
[1739126785381,0.0357,96237.0,96234.0,0.3608]
[1739126786276,0.0387,96237.0,96234.0,0.3713257]
[1739126787066,0.0387,96237.0,96234.0,0.0105257]
[1739126787261,0.0387,96237.0,96233.0,0.00015583]
[1739126788773,0.0357,96237.0,96233.0,0.00015583]
[1739126788966,0.0387,96237.0,96233.0,0.00015583]
[1739126791787,0.0387,96237.0,96233.0,0.01063257]
[1739126791968,0.0387,96237.0,96233.0,0.00015583]
[1739126794973,0.0387,96237.0,96236.0,0.2077913]
[1739126795173,0.006,96237.0,96236.0,0.2077913]
[1739126795488,0.006,96237.0,96233.0,0.00015583]
[1739126795782,0.006,96237.0,96233.0,0.01065028]
[1739126795975,0.006,96237.0,96233.0,0.00015583]
[1739126796571,0.003,96237.0,96233.0,0.00015583]
[1739126796874,0.004,96237.0,96233.0,0.00015583]
[1739126797184,0.008,96237.0,96233.0,0.00015583]
[1739126797479,0.007,96237.0,96233.0,0.00015583]
[1739126798375,0.003,96237.0,96233.0,0.00015583]
[1739126798580,0.006,96237.0,96233.0,0.00015583]
[1739126800067,0.006,96237.0,96233.0,0.01038677]
[1739126800270,0.006,96237.0,96233.0,0.21818447]
[1739126812681,0.006,96237.0,96233.0,0.40468175]
[1739126816682,0.006,96237.0,96233.0,0.4668397]
[1739126819894,0.006,96237.0,96236.0,0.2077913]
[1739126821184,0.006,96237.0,96235.0,0.1867048]
[1739126821492,0.2077913,96236.0,96235.0,0.1867048]
[1739126822895,0.2147913,96236.0,96235.0,0.1867048]
[1739126824593,0.2147913,96236.0,96234.0,0.207795]
[1739126825986,0.2117913,96236.0,96234.0,0.207795]
[1739126826186,0.2147913,96236.0,96234.0,0.207795]
[1739126826495,0.2137913,96236.0,96234.0,0.207795]
[1739126826688,0.2137913,96236.0,96233.0,0.00015583]
[1739126826890,0.2137913,96236.0,96235.0,0.2077934]
[1739126829804,0.2147913,96236.0,96235.0,0.2077934]
[1739126841209,0.007,96236.0,96233.0,0.00015583]
[1739126841417,0.2077956,96234.0,96233.0,0.00015583]
[1739126841611,0.0956,96235.0,96224.0,0.1867048]
[1739126841817,0.207815,96225.0,96224.0,0.1867048]
[1739126843710,0.207815,96225.0,96224.0,0.19734132]
[1739126844415,0.207815,96225.0,96224.0,0.19834132]
[1739126844917,0.207815,96225.0,96224.0,0.01163652]
[1739126858212,0.3608,96227.0,96224.0,0.21945372]
[1739126859827,0.3608,96227.0,96224.0,0.21845372]
[1739126860123,0.3608,96227.0,96224.0,0.21945372]
[1739126860326,0.3608,96227.0,96224.0,0.22045372]
[1739126860924,0.2831,96227.0,96224.0,0.22045372]
[1739126861226,0.2831,96227.0,96226.0,0.2078129]
[1739126862929,0.3608,96230.0,96224.0,0.01063652]
[1739126863225,0.3608,96230.0,96229.0,0.2078064]
[1739126865021,0.3618,96230.0,96229.0,0.2078064]
[1739126865730,0.3628,96230.0,96229.0,0.2078064]
[1739126873633,0.54932471,96230.0,96229.0,0.2078064]
[1739126873823,0.59985776,96230.0,96229.0,0.2078064]
[1739126876323,0.41333305,96230.0,96229.0,0.2078064]
[1739126877932,0.05253305,96230.0,96229.0,0.2078064]
[1739126878333,0.41333305,96230.0,96229.0,0.2078064]
[1739126879825,0.3628,96230.0,96229.0,0.2078064]
[1739126886137,0.002,96230.0,96229.0,0.2078064]
[1739126893934,0.05253109,96230.0,96229.0,0.2078064]
[1739126900141,0.26033529,96230.0,96229.0,0.2078064]
[1739126903440,0.05253109,96230.0,96229.0,0.2078064]
[1739126904246,0.002,96230.0,96229.0,0.2078064]
[1739126912152,0.05253122,96230.0,96229.0,0.2078064]
[1739126918754,0.002,96230.0,96229.0,0.2078064]
[1739126925345,0.05253122,96230.0,96229.0,0.2078064]
[1739126934467,0.002,96230.0,96229.0,0.2078064]
[1739126943179,0.2395574,96230.0,96229.0,0.2078064]
[1739126943757,0.2395574,96230.0,96221.0,0.01048034]
[1739126943758,0.2078198,96223.0,96221.0,0.01048034]
[1739126943966,0.20783,96219.0,96217.0,0.18663647]
[1739126944160,0.0619,96218.0,96217.0,0.18663647]
[1739126946068,0.0619,96218.0,96217.0,0.18963647]
[1739126946559,0.0619,96218.0,96217.0,0.18663647]
[1739126946766,0.0659,96218.0,96217.0,0.18663647]
[1739126946965,0.0659,96218.0,96217.0,0.19711006]
[1739126947666,0.11643123,96218.0,96217.0,0.01047359]
[1739126947866,0.11643123,96218.0,96215.0,0.00015583]
[1739126949169,0.11443123,96218.0,96215.0,0.00015583]
[1739126949370,0.68406193,96218.0,96215.0,0.00015583]
[1739126949671,0.2078335,96217.0,96215.0,0.00015583]
[1739126950869,0.2088335,96217.0,96215.0,0.00015583]
[1739126951668,0.2098335,96217.0,96215.0,0.00015583]
[1739126952165,0.2098335,96217.0,96215.0,0.01081462]
[1739126966081,0.002,96217.0,96216.0,0.2078345]
[1739126967076,0.001,96217.0,96216.0,0.2078345]
[1739126967276,0.004,96217.0,96216.0,0.2078345]
[1739126971695,0.2118323,96217.0,96216.0,0.2078345]
[1739126976593,0.004,96217.0,96215.0,0.00015583]
[1739126976890,0.2078345,96216.0,96215.0,0.00015583]
[1739126979191,0.2088345,96216.0,96215.0,0.00015583]
[1739126979687,0.2098345,96216.0,96215.0,0.00015583]
[1739126980290,0.26037541,96216.0,96215.0,0.00015583]
[1739126982995,0.26037541,96216.0,96215.0,0.20799243]
[1739126986599,0.25937541,96216.0,96215.0,0.20799243]
[1739126986802,0.26737541,96216.0,96215.0,0.20799243]
[1739126994098,0.26337541,96216.0,96215.0,0.20799243]
[1739126994307,0.26337541,96216.0,96215.0,0.21299243]
[1739126994499,0.62417541,96216.0,96215.0,0.21299243]
[1739126995203,0.61917541,96216.0,96215.0,0.21299243]
[1739126995392,0.62017541,96216.0,96215.0,0.21299243]
[1739126997301,0.25937541,96216.0,96215.0,0.21299243]
[1739126998500,0.2088345,96216.0,96215.0,0.21299243]
[1739127002999,0.001,96216.0,96215.0,0.21299243]
[1739127006011,0.05153859,96216.0,96215.0,0.21299243]
[1739127008713,0.001,96216.0,96215.0,0.21299243]
[1739127017916,0.001,96216.0,96215.0,0.57379243]
[1739127018527,0.05153691,96216.0,96215.0,0.57379243]
[1739127022332,0.001,96216.0,96215.0,0.57379243]
[1739127022929,0.2078039,96231.0,96215.0,0.36595583]
[1739127023118,0.2078039,96231.0,96226.0,0.2078127]
[1739127024029,0.2088039,96231.0,96226.0,0.2078127]
[1739127024734,0.2098039,96231.0,96226.0,0.2078127]
[1739127025436,0.2098039,96231.0,96227.0,0.2078087]
[1739127025823,0.05053384,96230.0,96227.0,0.2078087]
[1739127026627,0.05053384,96230.0,96228.0,0.2078066]
[1739127027233,0.02152904,96234.0,96233.0,0.2077977]
[1739127028537,0.02152904,96234.0,96233.0,0.5097977]
[1739127028829,0.02152904,96234.0,96233.0,0.2097977]
[1739127029029,0.02152904,96234.0,96233.0,0.2117977]
[1739127030135,0.02252904,96234.0,96233.0,0.2117977]
[1739127030329,0.001,96234.0,96233.0,0.2117977]
[1739127031329,0.00015583,96243.0,96233.0,0.003]
[1739127031538,0.00015583,96243.0,96242.0,0.5685783]
[1739127032838,0.00015583,96243.0,96242.0,0.5725783]
[1739127033135,0.00215583,96243.0,96242.0,0.5725783]
[1739127033826,0.00115583,96243.0,96242.0,0.5735783]
[1739127036942,0.00115583,96243.0,96242.0,0.2127783]
[1739127038429,0.00115583,96243.0,96242.0,0.005]
[1739127038637,0.20893203,96243.0,96242.0,0.005]
[1739127039043,0.20793203,96243.0,96242.0,0.002]
[1739127039243,0.20793203,96243.0,96242.0,0.003]
[1739127039745,0.00215583,96243.0,96226.0,0.39379411]
[1739127040041,0.2078022,96231.0,96228.0,0.2078075]
[1739127040247,0.0633,96230.0,96228.0,0.2078075]
[1739127042948,0.0326,96229.0,96228.0,0.2078075]
[1739127052457,0.3608,96232.0,96228.0,0.2078075]
[1739127052665,0.3608,96232.0,96231.0,0.2078021]
[1739127053658,0.3618,96232.0,96231.0,0.2078021]
[1739127053859,0.3628,96232.0,96231.0,0.2078021]
[1739127054361,0.3618,96232.0,96231.0,0.2078021]
[1739127054566,0.3628,96232.0,96231.0,0.2078021]
[1739127055062,0.001,96232.0,96231.0,0.2078021]
[1739127055264,0.002,96232.0,96231.0,0.2078021]
[1739127055861,0.001,96232.0,96231.0,0.2078021]
[1739127056163,0.006,96232.0,96231.0,0.2078021]
[1739127056764,0.001,96232.0,96231.0,0.2078021]
[1739127056955,0.2077788,96242.0,96235.0,0.2077928]
[1739127057154,0.2077788,96242.0,96236.0,0.2077909]
[1739127057561,0.2077788,96242.0,96234.0,0.3608]
[1739127057756,0.2077788,96242.0,96237.0,0.207789]
[1739127058155,0.2077788,96242.0,96238.0,0.2077869]
[1739127058356,0.004,96242.0,96238.0,0.2077869]
[1739127058550,0.207781,96241.0,96238.0,0.2077869]
[1739127058769,0.2077848,96239.0,96238.0,0.2077869]
[1739127061358,0.2107848,96239.0,96238.0,0.2077869]
[1739127061559,0.2137848,96239.0,96238.0,0.2077869]
[1739127072778,0.26431243,96239.0,96238.0,0.2077869]
[1739127073881,0.2137848,96239.0,96238.0,0.2077869]
[1739127078774,0.006,96239.0,96238.0,0.2077869]
[1739127079274,0.006,96239.0,96238.0,0.3038869]
[1739127080378,0.14936928,96239.0,96238.0,0.3038869]
[1739127080773,0.14636928,96239.0,96238.0,0.3038869]
[1739127081172,0.14336928,96239.0,96238.0,0.3038869]
[1739127081377,0.14336928,96239.0,96238.0,0.3058869]
[1739127081978,0.14336928,96239.0,96238.0,0.3068869]
[1739127083679,0.00015583,96243.0,96238.0,0.0991]
[1739127083875,0.00015583,96243.0,96242.0,0.5685783]
[1739127085075,0.00015583,96243.0,96242.0,0.5705783]
[1739127089083,0.00015583,96243.0,96242.0,0.9313783]
[1739127091480,0.00015583,96243.0,96242.0,0.94173998]
[1739127109087,3e-08,96243.0,96242.0,0.94173998]
[1739127109281,0.0617,96262.0,96261.0,0.2077373]
[1739127109478,0.0617,96262.0,96261.0,0.5685373]
[1739127110294,0.0687,96262.0,96261.0,0.5685373]
[1739127110689,0.0432,96262.0,96261.0,0.5695373]
[1739127110994,0.013,96262.0,96261.0,0.5695373]
[1739127116594,0.013,96262.0,96261.0,0.57981604]
[1739127124296,0.00015583,96271.0,96270.0,0.2077179]
[1739127124497,0.00015583,96271.0,96270.0,0.6373579]
[1739127125600,0.00915583,96271.0,96270.0,0.6373579]
[1739127126804,0.01715583,96271.0,96270.0,0.6383579]
[1739127131311,0.01415583,96271.0,96270.0,0.6373579]
[1739127131909,0.00515583,96271.0,96270.0,0.6373579]
[1739127132207,0.01115583,96271.0,96270.0,0.6383579]
[1739127133713,0.01115583,96271.0,96270.0,0.2775579]
[1739127134013,0.01115583,96271.0,96270.0,0.9991579]
[1739127135210,3e-08,96271.0,96270.0,0.9991579]
[1739127135408,0.0609,96287.0,96286.0,0.2076834]
[1739127135617,0.0609,96287.0,96286.0,0.6372834]
[1739127135817,0.0609,96287.0,96286.0,0.9980834]
[1739127136310,0.00015583,96296.0,96286.0,0.7904]
[1739127136505,0.00015583,96296.0,96295.0,0.568464]
[1739127137709,0.00915583,96296.0,96295.0,0.569464]
[1739127138620,0.01615583,96296.0,96295.0,0.570464]
[1739127139415,0.01415583,96296.0,96295.0,0.569464]
[1739127139816,0.00815583,96296.0,96295.0,0.568464]
[1739127142824,0.00815583,96296.0,96295.0,0.207664]
[1739127143117,0.00815583,96296.0,96295.0,0.568464]
[1739127144321,0.00815583,96296.0,96295.0,0.3608]
[1739127149329,0.00815583,96296.0,96295.0,0.568464]
[1739127150623,0.00815583,96296.0,96295.0,0.207664]
[1739127150826,0.00815583,96296.0,96286.0,0.45296145]
[1739127151017,0.00815583,96296.0,96291.0,0.2076721]
[1739127151216,0.00815583,96296.0,96293.0,0.2076675]
[1739127152026,0.00815583,96296.0,96286.0,0.0104287]
[1739127152321,0.00815583,96296.0,96284.0,0.3608]
[1739127152322,0.2076714,96292.0,96284.0,0.3608]
[1739127152522,0.2076752,96290.0,96288.0,0.2076788]
[1739127153714,0.2096752,96290.0,96288.0,0.2076788]
[1739127155025,0.2116752,96290.0,96288.0,0.2076788]
[1739127155528,0.2116752,96290.0,96289.0,0.2076769]
[1739127156724,0.2096752,96290.0,96289.0,0.2076769]
[1739127156933,0.2116752,96290.0,96289.0,0.2076769]
[1739127158426,0.26217473,96290.0,96289.0,0.2076769]
[1739127161223,0.05449953,96290.0,96289.0,0.2076769]
[1739127165139,0.004,96290.0,96289.0,0.2076769]
[1739127170249,0.004,96290.0,96289.0,0.21827001]
[1739127172541,0.004,96290.0,96289.0,0.2076769]
[1739127175141,0.05449845,96290.0,96289.0,0.2076769]
[1739127178753,0.24116365,96290.0,96289.0,0.2076769]
[1739127182447,0.004,96290.0,96289.0,0.2076769]
[1739127198360,0.14580343,96290.0,96289.0,0.2076769]
[1739127203073,0.14580343,96290.0,96289.0,0.5684769]
[1739127204767,0.14380343,96290.0,96289.0,0.5684769]
[1739127204966,0.14580343,96290.0,96289.0,0.5684769]
[1739127205271,0.14380343,96290.0,96289.0,0.5724769]
[1739127206373,0.00015583,96296.0,96289.0,0.3648]
[1739127206674,0.00015583,96296.0,96295.0,0.207664]
[1739127207969,0.00015583,96296.0,96295.0,0.209664]
[1739127208374,0.00015583,96296.0,96295.0,0.207664]
[1739127208574,0.00015583,96296.0,96295.0,0.209664]
[1739127208971,0.00015583,96296.0,96295.0,0.207664]
[1739127209169,0.00015583,96296.0,96295.0,0.209664]
[1739127209373,0.00015583,96296.0,96295.0,0.211664]
[1739127210179,0.00015583,96296.0,96295.0,0.212664]
[1739127215179,0.00015583,96296.0,96295.0,0.22293366]
[1739127217290,0.00015583,96296.0,96295.0,0.58373366]
[1739127217882,0.05064866,96296.0,96295.0,0.58373366]
[1739127221278,0.25831046,96296.0,96295.0,0.3658]
[1739127223590,0.25831046,96296.0,96295.0,0.005]
[1739127224984,0.20781763,96296.0,96295.0,0.005]
[1739127235787,0.25831462,96296.0,96295.0,0.005]
[1739127239886,0.20781763,96296.0,96295.0,0.005]
[1739127243094,0.56861763,96296.0,96295.0,0.005]
[1739127245394,0.57261763,96296.0,96295.0,0.002]
[1739127247904,0.2076747,96290.0,96289.0,0.2076754]
[1739127249109,0.2096747,96290.0,96289.0,0.2076754]
[1739127250595,0.2096747,96290.0,96286.0,0.01047517]
[1739127250596,0.002,96290.0,96286.0,0.01047517]
[1739127250797,0.2076812,96287.0,96282.0,0.54764871]
[1739127251006,0.2076812,96287.0,96286.0,0.2076834]
[1739127254801,0.2076898,96283.0,96282.0,0.37145111]
[1739127255005,0.3608,96288.0,96276.0,0.2077043]
[1739127255212,0.11313275,96287.0,96276.0,0.2077043]
[1739127255411,0.2077006,96278.0,96274.0,0.18628871]
[1739127256500,0.2077006,96278.0,96274.0,0.19677274]
[1739127256900,0.2077006,96278.0,96274.0,0.18628871]
[1739127257102,0.2077006,96278.0,96277.0,0.24858799]
[1739127257502,0.2077006,96278.0,96277.0,0.25258799]
[1739127257810,0.2077006,96278.0,96277.0,0.25558799]
[1739127260514,0.2077006,96278.0,96277.0,0.00715583]
[1739127282620,0.5685006,96278.0,96277.0,0.00715583]
[1739127284731,0.2077006,96278.0,96277.0,0.00715583]
[1739127286628,0.44485906,96278.0,96277.0,0.00715583]
[1739127290618,0.25820668,96278.0,96277.0,0.00715583]
[1739127294035,0.2077006,96278.0,96277.0,0.00715583]
[1739127298032,0.5685006,96278.0,96277.0,0.00715583]
[1739127301027,0.3608,96278.0,96270.0,0.18626476]
[1739127301232,0.2077157,96271.0,96270.0,0.18626476]
[1739127301531,0.2077308,96264.0,96263.0,0.24835302]
[1739127301728,0.2077373,96261.0,96260.0,0.00155806]
[1739127302431,0.5685373,96261.0,96260.0,0.00155806]
[1739127303136,0.7875373,96261.0,96255.0,0.31044128]
[1739127303330,0.2077481,96256.0,96255.0,0.31044128]
[1739127304129,0.2077481,96256.0,96255.0,0.31144128]
[1739127304844,0.2077481,96256.0,96255.0,0.001]
[1739127305740,0.58048,96261.0,96251.0,0.00015583]
[1739127305936,0.5685567,96252.0,96251.0,0.00015583]
[1739127307033,0.5685567,96252.0,96251.0,0.00515583]
[1739127307739,0.5685567,96252.0,96251.0,0.00815583]
[1739127308542,0.61907465,96252.0,96251.0,0.00815583]
[1739127309833,0.68779465,96252.0,96251.0,0.00815583]
[1739127312249,0.2077826,96240.0,96239.0,0.0303]
[1739127313441,0.2107826,96240.0,96239.0,0.0303]
[1739127313642,0.2127826,96240.0,96239.0,0.2380848]
[1739127315547,0.2077986,96235.0,96230.0,0.00015583]
[1739127315750,0.2077986,96235.0,96234.0,0.2077947]
[1739127317242,0.2087986,96235.0,96234.0,0.2077947]
[1739127317845,0.2077986,96235.0,96234.0,0.2117947]
[1739127318552,0.2077986,96235.0,96234.0,0.2127947]
[1739127319258,0.2077986,96235.0,96234.0,0.2117947]
[1739127319452,0.2087986,96235.0,96234.0,0.2117947]
[1739127321053,0.001,96235.0,96234.0,0.2117947]
[1739127322153,0.001,96235.0,96234.0,0.5725947]
[1739127326260,0.2087934,96235.0,96234.0,0.3648]
[1739127327545,0.2087934,96235.0,96234.0,0.5725956]
[1739127330656,0.2087934,96235.0,96234.0,0.004]
[1739127331860,0.5695934,96235.0,96234.0,0.004]
[1739127340659,0.6201232,96235.0,96234.0,0.004]
[1739127342267,0.0515298,96235.0,96234.0,0.5725956]
[1739127345070,0.001,96235.0,96234.0,0.5725956]
[1739127349764,0.001,96235.0,96234.0,0.2117956]
[1739127375194,0.05152474,96235.0,96234.0,0.2117956]
[1739127378493,0.00015583,96249.0,96248.0,0.2077654]
[1739127378791,0.00015583,96249.0,96248.0,0.5685654]
[1739127379590,0.00115583,96249.0,96248.0,0.5685654]
[1739127379990,0.00215583,96249.0,96248.0,0.5685654]
[1739127384900,0.00215583,96249.0,96248.0,0.2077654]
[1739127385094,0.00215583,96249.0,96248.0,0.5685654]
[1739127386687,0.00215583,96249.0,96248.0,0.2077654]
[1739127386894,0.00215583,96249.0,96248.0,0.5685654]
[1739127387792,0.00215583,96249.0,96248.0,0.57921484]
[1739127389292,0.00215583,96249.0,96248.0,0.21841484]
[1739127389505,0.00215583,96249.0,96248.0,0.57921484]
[1739127395705,0.00215583,96249.0,96248.0,0.21841484]
[1739127397300,0.00215583,96249.0,96248.0,0.57921484]
[1739127398010,0.05267312,96249.0,96248.0,0.57921484]
[1739127405605,0.00215583,96249.0,96248.0,0.57921484]
[1739127419710,0.00215583,96249.0,96248.0,0.21841484]
[1739127428140,0.05267431,96249.0,96248.0,0.21841484]
[1739127432436,0.00215583,96249.0,96248.0,0.21841484]
[1739127434836,0.00215583,96249.0,96248.0,0.2077654]
[1739127443741,0.20991903,96249.0,96248.0,0.2077654]
[1739127444446,0.35496176,96249.0,96248.0,0.2077654]
[1739127450849,0.20991903,96249.0,96248.0,0.2077654]
[1739127463358,0.00215583,96249.0,96248.0,0.2077654]
[1739127467360,0.05267604,96249.0,96248.0,0.2077654]
[1739127474566,0.05267604,96249.0,96248.0,0.5685654]
[1739127475564,0.00215583,96249.0,96248.0,0.5685654]
[1739127475963,0.18692465,96269.0,96268.0,0.2077222]
[1739127477167,0.18692465,96269.0,96268.0,0.2087222]
[1739127477168,0.19592465,96269.0,96268.0,0.2087222]
[1739127477469,0.19592465,96269.0,96268.0,0.5695222]
[1739127477470,0.20492465,96269.0,96268.0,0.5695222]
[1739127479865,0.018,96269.0,96268.0,0.5695222]
[1739127483573,0.018,96269.0,96268.0,0.58004261]
[1739127500985,0.018,96269.0,96268.0,0.94084261]
[1739127515989,0.018,96269.0,96268.0,1.12691406]
[1739127518798,0.018,96269.0,96268.0,0.18707145]
[1739127519593,0.018,96269.0,96268.0,0.001]
[1739127521287,0.018,96269.0,96268.0,0.2087222]
[1739127524192,0.06850911,96269.0,96268.0,0.2087222]
[1739127528708,0.018,96269.0,96268.0,0.2087222]
[1739127540614,0.22572,96269.0,96268.0,0.2087222]
[1739127544331,0.27622912,96269.0,96268.0,0.2087222]
[1739127548229,0.22572,96269.0,96268.0,0.2087222]
[1739127555140,0.27623086,96269.0,96268.0,0.2087222]
[1739127557434,0.27223086,96269.0,96268.0,0.2087222]
[1739127557930,0.27023086,96269.0,96268.0,0.2087222]
[1739127562031,0.37020662,96269.0,96268.0,0.2087222]
[1739127564243,0.37020662,96269.0,96268.0,0.001]
[1739127564443,0.16248662,96269.0,96268.0,0.001]
[1739127565546,0.06251086,96269.0,96268.0,0.001]
[1739127569040,0.012,96269.0,96268.0,0.0313]
[1739127571443,0.012,96269.0,96268.0,0.2390222]
[1739127580752,0.0625067,96269.0,96268.0,0.2390222]
[1739127586463,0.012,96269.0,96268.0,0.2390222]
[1739127588463,0.012,96269.0,96268.0,0.2087222]
[1739127591954,0.06250752,96269.0,96268.0,0.2087222]
[1739127594965,0.05750752,96269.0,96268.0,0.2077222]
[1739127595150,0.06250752,96269.0,96268.0,0.2077222]
[1739127595461,0.05650752,96269.0,96268.0,0.2087222]
[1739127595766,0.05950752,96269.0,96268.0,0.2087222]
[1739127596059,0.05350752,96269.0,96268.0,0.2077222]
[1739127596260,0.05750752,96269.0,96268.0,0.2077222]
[1739127602763,0.007,96269.0,96268.0,0.2077222]
[1739127607372,0.007,96269.0,96267.0,0.67176128]
[1739127607567,0.007,96269.0,96267.0,0.67124128]
[1739127607870,0.0321,96268.0,96267.0,0.31044128]